Cogmind - Beta 14 @@@ ROGUE MODE // 2024.08.24 @ 16:18:03 Player: UnifiBg Result: Self-destructed Performance ------------- Evolutions (1) 500 Regions Visited (2) 400 Robots Destroyed (42) 210 Value Destroyed (839) 839 Prototype IDs (1) 20 Alien Tech Used (0) 0 Bonus (0) 0 TOTAL SCORE: 1969 Bonus ------- None Cogmind --------- Core Integrity 291/400 Matter 207/300 Energy 100/100 System Corruption 0% Temperature Hot (296) Movement Rolling (83) Location -9/Materials Parts ------- > --- POWER (1) -------- (None) > --- PROPULSION (3) --- Wheel Wheel Armored Wheel > --- UTILITY (3) ------ Small Storage Unit Visual Processing Unit > --- WEAPON (2) ------- Advanced Beam Cannon > --- INVENTORY (8) ---- Light Ion Engine Wheel Large Battery (200) Light Assault Rifle Light Assault Rifle Rocket Launcher Mining Laser Peak State ------------ > --- POWER ------------ Improved Ion Engine > --- PROPULSION ------- Wheel Wheel Armored Wheel > --- UTILITY ---------- Small Storage Unit Visual Processing Unit Light Armor Plating > --- WEAPON ----------- Advanced Beam Cannon Heavy Assault Rifle > --- INVENTORY -------- Light Ion Engine Wheel Wheel Large Battery Light Assault Rifle Light Assault Rifle Rocket Launcher Mining Laser [Rating: 15] Favorites ----------- Power Ion Engine Engine Ion Engine Propulsion Wheel Wheel Wheel Utility Small Storage Unit Device Seismic Detector Storage Small Storage Unit Processor Signal Interpreter Protection Light Armor Plating Weapon Autogun Energy Gun Small Laser Energy Cannon Advanced Beam Cannon Ballistic Gun Autogun Build | -11 -10 -9 ------- Run | Yrd Mat Mat Slots Evolved 2 | . . 2 Power . | . . . Propulsion 1 | . . 1 Utility 1 | . . 1 Weapon . | . . . Parts Attached 45 | 9 20 16 Power 7 | 1 3 3 Engine 7 | 1 3 3 Core . | . . . Reactor . | . . . Propulsion 16 | 2 8 6 Treads . | . . . Leg . | . . . Wheel 16 | 2 8 6 Hover . | . . . Flight . | . . . Utility 9 | 2 4 3 Device 4 | 1 3 . Storage 2 | 1 . 1 Processor 2 | . 1 1 Hackware . | . . . Protection 1 | . . 1 Artifact . | . . . Weapon 13 | 4 5 4 Energy Gun 3 | 3 . . Energy Cannon 1 | . . 1 Ballistic Gun 9 | 1 5 3 Ballistic Cannon . | . . . Launcher . | . . . Special Weapon . | . . . Impact Weapon . | . . . Slashing Weapon . | . . . Piercing Weapon . | . . . Special Melee Weapon . | . . . Unidentified Prototypes 1 | . . 1 Parts Lost 6 | . . 6 Power 1 | . . 1 Propulsion 1 | . . 1 Utility 1 | . . 1 Weapon 3 | . . 3 Highest Loss Streak 4 | . . 4 To Critical Strikes . | . . . Average Slot Usage (%) 99 | . 100 98 Engine 12 | . 14 11 Wheel 30 | . 28 32 Device 1 | . 2 . Storage 12 | . 14 11 Processor 15 | . 11 18 Protection 1 | . . 2 Energy Gun 1 | . 2 . Energy Cannon 1 | . . 2 Ballistic Gun 22 | . 25 19 Peak Build Rating 15 | 7 10 15 Average Rating 10 | 4 8 13 On Entrance 5 | . 7 10 Naked Turns . | . . . Heaviest Build 22 | 14 17 22 Greatest Support 32 | 20 20 32 Greatest Overweight (x) 1 | . . 1 Average Overweight (x) . | . . . Largest Inventory Capacity 8 | 8 8 8 Average Capacity 7 | 7 8 8 Most Carried 8 | 8 8 8 Average Carried 7 | 4 7 7 Final Capacity 8 | 8 8 8 Final Carried 8 | 6 8 7 Class Distribution -------------------- 69% | Mutant 30% | Scavenger-Mutant Dominant Class ---------------- Mutant | -10/Materials Scavenger-Mutant | -9/Materials Resources | -11 -10 -9 ----------- Run | Yrd Mat Mat Matter Collected 1267 | 358 617 292 Remotely . | . . . Salvage Created 1334 | 146 870 318 Parts 100 | 10 66 24 Haulers Intercepted . | . . . Recyclers Shooed . | . . . Parts Field Recycled . | . . . Retrieved Matter . | . . . Parts Self-Destructed . | . . . Prevented . | . . . Kills | -11 -10 -9 ------- Run | Yrd Mat Mat Combat Hostiles Destroyed 26 | . 15 11 Guns 24 | . 15 9 Cannons 2 | . . 2 Classes Destroyed 10 | 3 5 2 Worker 4 | 1 3 . Builder 2 | . 2 . Tunneler 3 | 3 . . Recycler 3 | 1 2 . Mechanic 1 | . 1 . Operator 1 | . . 1 Watcher 2 | . 2 . Swarmer 10 | . 3 7 Grunt 14 | . 12 2 Sentry 2 | . . 2 Best Kill Streak 6 | 1 6 4 Combat Bots Only 4 | . 4 4 Max Kills in Single Turn 2 | 1 2 1 Gunslinging . | . . . Exploded . | . . . Melee . | . . . Uniques/NPCs Destroyed . | . . . Combat | -11 -10 -9 -------- Run | Yrd Mat Mat Hostile Shots Fired 151 | . 42 109 Missed 32 | . 8 24 Damage Taken 1307 | . 491 816 Core 191 | . 82 109 Absorbed by Shields . | . . . Core Remaining (%) 83 | 100 67 . Volleys Fired 118 | 26 54 38 Largest 2 | 1 2 2 Hottest 91 | 20 60 91 Shots Fired 208 | 26 108 74 Gun 197 | 26 108 63 Cannon 11 | . . 11 Launcher . | . . . Special . | . . . Kinetic 196 | 26 107 63 Thermal 12 | . 1 11 Explosive . | . . . Electromagnetic . | . . . Robot Hit Streak 10 | 6 10 10 Robot Miss Streak 5 | 5 4 5 Penetration Max . | . . . Secondary Targets 1 | . 1 . Max Gunslinging Chain 1 | . 1 . Shots Hit Robots 118 | 15 64 39 Core Hits 52 | 5 31 16 Critical Kills . | . . . Critical Parts Destroyed . | . . . Critical Strikes . | . . . Melee Attacks . | . . . Impact . | . . . Slashing . | . . . Piercing . | . . . Sneak Attacks . | . . . Combat Hostiles . | . . . Follow-up Attacks . | . . . Damage Inflicted 1775 | 172 980 623 Guns 1694 | 172 980 542 Cannons 81 | . . 81 Explosions . | . . . Melee . | . . . Ramming . | . . . Kinetic 1694 | 172 980 542 Thermal 81 | . . 81 Explosive . | . . . Electromagnetic . | . . . Impact . | . . . Slashing . | . . . Piercing . | . . . Highest Corruption . | . . . Average Corruption . | . . . Corruption Purged . | . . . Corruption Blocked . | . . . Overload Shots . | . . . Overflow Damage 1 | . . 1 Projectiles 1 | . . 1 Explosions . | . . . Melee . | . . . Knockbacks . | . . . Impact . | . . . Kinetic . | . . . Secondary . | . . . Self-Inflicted Damage . | . . . Shots . | . . . Rammed . | . . . Targets Rammed . | . . . Kicked . | . . . Crushed . | . . . Highest Temperature 296 | . 62 296 Average Temperature 45 | . 13 115 Received Heat Transfer 384 | . 228 156 Siege Activations . | . . . Robots Corrupted . | . . . Combat Hostiles . | . . . Parts Fried . | . . . Impact Corruptions . | . . . Robots Melted . | . . . Combat Hostiles . | . . . Parts Melted . | . . . Heat Transferred 148 | . . 148 Parts Sabotaged . | . . . Parts Stolen . | . . . Parts Stripped . | . . . Power Chain Reactions . | . . . Alert | -11 -10 -9 ------- Run | Yrd Mat Mat Peak Influence 324 | 25 324 262 Initial 136 | . 16 136 Average 139 | 9 124 182 Maximum Alert Level 1 | . 1 1 Low Security (%) 79 | 100 79 74 Level 1 20 | . 20 25 Level 2 . | . . . Level 3 . | . . . Level 4 . | . . . Level 5 . | . . . High Security . | . . . Max Security . | . . . Squads Dispatched 6 | . 4 2 Investigation 2 | . 1 1 Extermination . | . . . Reinforcement 4 | . 3 1 Assault . | . . . Garrison . | . . . Intercept . | . . . Searches Triggered . | . . . Construction Impeded . | . . . Haulers Reinforced . | . . . Active Scanning Responses . | . . . Cargo Convoy Interrupts . | . . . Stealth | -11 -10 -9 --------- Run | Yrd Mat Mat Distress Signals 5 | . 2 3 Communications Jammed . | . . . Distress Signals . | . . . Times Spotted 68 | . 35 33 Peak Tracking Total 11 | . 4 11 Tactical Retreats 6 | . 4 2 Traps | -11 -10 -9 ------- Run | Yrd Mat Mat Traps Triggered 2 | . 2 . Indirectly . | . . . Trap Hack Attempts . | . . . Triggered . | . . . Disarmed . | . . . Reprogrammed . | . . . Reused . | . . . Traps Extracted . | . . . Installed . | . . . Triggered . | . . . Machines | -11 -10 -9 ---------- Run | Yrd Mat Mat Machines Disabled 2 | . . 2 Max in Single Turn 1 | . . 1 Machines Repaired . | . . . Machines Dismantled . | . . . Machines Sabotaged . | . . . Overloaded Fab Kills . | . . . Hacking | -11 -10 -9 --------- Run | Yrd Mat Mat Machines Accessed 6 | . 3 3 Terminals 6 | . 3 3 Fabricators . | . . . Repair Stations . | . . . Recycling Units . | . . . Scanalyzers . | . . . Garrison Access . | . . . Total Hacks 23 | . 10 13 Successful 17 | . 6 11 Failed 6 | . 4 2 Catastrophic . | . . . Database Lockouts . | . . . Manual 23 | . 10 13 Terminals 23 | . 10 13 Fabricators . | . . . Repair Stations . | . . . Recycling Units . | . . . Scanalyzers . | . . . Garrison Access . | . . . Terminal Hacks . | . . . Fabricator Hacks . | . . . Repair Station Hacks . | . . . Recycling Unit Hacks . | . . . Scanalyzer . | . . . Garrison Access Hacks . | . . . Unauthorized Hacks 17 | . 6 11 Terminals 17 | . 6 11 Track 4 | . 1 3 Botnet 6 | . 3 3 Operators 2 | . . 2 Skim 5 | . 2 3 Fabricators . | . . . Repair Stations . | . . . Recycling Units . | . . . Scanalyzers . | . . . Garrison Access . | . . . Data Cores Recovered . | . . . Used . | . . . Hacking Detections 6 | . 3 3 Full Trace Events 2 | . 1 1 Feedback Events . | . . . Feedback Blocked . | . . . Robot Schematics Acquired . | . . . Robots Built . | . . . Authchips . | . . . Time . | . . . Total Robot Build Rating . | . . . Part Schematics Acquired . | . . . Parts Built . | . . . Authchips . | . . . Time . | . . . Total Part Build Rating . | . . . Parts Repaired . | . . . Time . | . . . Parts Recycled . | . . . Recycled Matter . | . . . Retrieved Matter . | . . . Retrieved Components . | . . . Parts Scanalyzed . | . . . Part Schematics Acquired . | . . . Parts Damaged . | . . . Bothacking | -11 -10 -9 ------------ Run | Yrd Mat Mat Used RIF Installer . | . . . Robots Hacked . | . . . Non-combat . | . . . Combat . | . . . Robot Hacks Applied . | . . . Relay Couplers Released . | . . . Fabnet Peak Effective % . | . . . Robots Rewired . | . . . Allies Hacked . | . . . Hacks Repelled . | . . . Allies | -11 -10 -9 -------- Run | Yrd Mat Mat Total Allies . | . . . Largest Group . | . . . Highest-Rated Group . | . . . Highest-Rated Ally . | . . . Total Orders . | . . . Ally Attacks . | . . . Total Damage . | . . . Kills . | . . . Allies Corrupted . | . . . Allies Melted . | . . . Intel | -11 -10 -9 ------- Run | Yrd Mat Mat Robot Analysis Total . | . . . Derelict Logs Recovered . | . . . Drone Launches . | . . . Drone Recoveries . | . . . Exploration | -11 -10 -9 ------------- Run | Yrd Mat Mat Turns Passed 2166 | 197 1028 941 Spaces Moved 1698 | 158 859 681 Core 7 | 7 . . Treads . | . . . Legs . | . . . Wheels 1691 | 151 859 681 Hover . | . . . Flight . | . . . Fastest Speed 50 | 50 80 80 Average Speed 81 | 78 80 82 Slowest Speed 95 | 80 80 95 Overloaded Moves . | . . . Propulsion Burnouts . | . . . Robots Hopped . | . . . Cave-ins Triggered . | . . . Exploration Rate (%) 41 | 6 89 29 Regions Visited 2 Branch Regions . Pre-discovered Areas . | . . . Known Exits Taken 1 | . 1 . Unknown Exits Taken 1 | 1 . . Scrap Searched . | . . . Spaces Dug . | . . . Terrain Destroyed . | . . . Melee . | . . . Projectile . | . . . AOE . | . . . Terrain Rammed . | . . . Walls Destroyed . | . . . Machines Disabled . | . . . Actions | -11 -10 -9 --------- Run | Yrd Mat Mat Total 2313 | 201 1118 994 Wait 401 | . 155 246 Move 1696 | 157 858 681 Hop . | . . . Pick Up 22 | 7 11 4 Fast Attach 15 | 7 3 5 Attach 4 | 1 . 3 Detach 2 | 1 . 1 Swap 26 | 1 17 8 Drop 29 | 1 20 8 Fire 118 | 26 54 38 Melee . | . . . Ram . | . . . Kick . | . . . Crush . | . . . Escape Stasis . | . . . Rewire . | . . . Trap . | . . . Miscellaneous . | . . . Route ------- -11/Scrapyard -10/Materials (discovered 4 exits: *Mat x2 / [*Min] / *Sub) -9/Materials (discovered 1 exit: *Min) History --------- Turn | Location | Event 2 | -11/Scrapyard | Met Revision 17 11 | -11/Scrapyard | Discovered new exit (range 15) 198 | -11/Scrapyard | Entered Materials 268 | -10/Materials | Discovered new exit (range 8) 343 | -10/Materials | Build established: Mutant 352 | -10/Materials | Discovered new exit (range 14) 375 | -10/Materials | Identified exit to Materials 1181 | -10/Materials | Discovered new exit (range 8) 1186 | -10/Materials | Identified exit to Subcaves 1218 | -10/Materials | Discovered exit to Materials (range 8) 1226 | -10/Materials | Entered another Materials area 1226 | -9/Materials | Evolved 2 slots: Propulsion x1, Utility x1 1520 | -9/Materials | Discovered new exit (range 6) 1542 | -9/Materials | Identified exit to Mines 2042 | -9/Materials | Build established: Scavenger-Mutant 2167 | -9/Materials | Self-destructed Last Messages --------------- Please expand to 2 more systems! >>Trojan(Track) Trojan loaded successfully. Testing... Tracking enabled and active. 02107_ ALERT: Suspicious activity at Terminal M004. Dispatching Investigation squad. 02114_ Dropped Arm. Wheel. 02116_ Acquired Arm. Wheel. 02127_ W-16 Scout sends out distress signal. 02136_ Material Processor disabled. 02139_ Destroyed Flight Unit. 02139_ S-10 Pest destroyed. 02146_ Acquired 14 matter. 02150_ S-10 Pest destroyed. 02152_ Wheel destroyed. 02154_ Destroyed Flight Unit. 02164_ Lgt. Armor Plating destroyed. 02164_ Imp. Ion Engine destroyed. 02166_ Hvy. Assault Rifle destroyed. Map ----- +----------------------------------------------------+ | ?????????????????????????????????????????????????? | | ?????????????????????????????????????????????????? | | ?????????????????????????????????????????????????? | | ?????????????????????????????????????????????????? | | ?????????????????????????????????????????????????? | | ?????????????????????????????????????? ?????????? | | ?????????????????????????????????????? ?????????? | | ?????????????????????????????????????? ?????????? | | ?????????????????????????????????????# ?????????? | | ??????????????????????????###????????# #????????? | | ?????????????????????????? ????????# #????????? | | ?????????????????????????? ????????# #????????? | | ?????????????????????????? ????????+ #????????? | | ?????????????????????????? ?????????# #????????? | | ?????????????????????????? ?????????# #????????? | | ?????????????????????????? ?????????# #????????? | | ?????????????????????????? ?????????# #????????? | | ??????????? ???????#???##+######????# ########?? | | ?????????####t####### ??# #????# # #?? | | ????????? *![ ??# g #????# # " #?? | | ?????????? !![ ?/sg""" #????# # T #?? | | ???????? "T" ![ ?#% """" ###### # " #?? | | ????????# b#[ """" # + #?? | | ????????# #s""""" + # #?? | | ????????# %g= " # ########## | | ????????# ###@ s # # | | ????????# ??????# % # # | | ????????# ??????????# ! # + ]]] | | ????????# ?????????????########## # ]]! | | ?????????????????????? # ]]! | | ?????????????????????? # | | ?????????????????????? # | | ???????????????????????########## # | | ???????????????????????# """ # ######### | | ???????????????????????# """"" # #???????? | | ???????????????????????# """"" # #######?? | | ???????????????????????# """"" # #?? | | ???????????????????????# """ + #?? | | ???????????????????????# # =! #?? | | ???????????????????????# ### """ [ ####?? | | ???????????????????????# #?# """ ="#???? | | ???????????????????????# #?# """ T#???? | | ???????????????????????##########?# "#???? | | ??????????????????????????????????# ##???? | | ??????????????????????????????????# """ #????? | | ??????????????????????????????????# """ #????? | | ??????????????????????????????????# """ #????? | | ??????????????????????????????????# #????? | | ????????????????########??????????# #????? | | ????????????????# #??????????# """ ###### | +----------------------------------------------------+ Best States ------------- Heat Dissipation 28 Energy Generation 12 Energy Capacity 265 Matter Stores 300 Matter Capacity 300 Sight Range 18 Terrain Scan Density 10 Armor Coverage 150 Evasion (%) 44 Item Schematics ----------------- None Robot Schematics ------------------ None Fabricated ------------ Nothing Alien Tech Used ----------------- None Achievements -------------- None Challenges ------------ None Game ------ Seed ElectronChipBasin Manual? 0 Play Time 00:24:15 Cumulative 25.4 hours Start 2024.08.23 @ 10:25:49 End 2024.08.24 @ 16:18:03 Sessions 5 Manual Loads 0 Difficulty Rogue Special Mode None Game No. 29 Rogue 29 Adventurer 0 Explorer 0 Win Type - Total 0 Types 0/0/0/0/0/0/0/0/0 Lore% 16 Gallery% 28 Achievement% 22 Wizard Run 0 Options --------- Layout 2 ASCII 0 Keyboard 1 Movement Arrows Keybinds 0 Fullscreen 2 Font 20/SmallcapsGlow Map View 56x54 Zoom Use 0% Tactical HUD 1 Map Filters NONE Filters NONE Steam X RUN: b4d2329b-c5a1-49db-b9aa-f72cce05bf1b